fUSD/lending_fUSD_20260517
["ID","MTS","AMOUNT","RATE_DAILY","PERIOD"]
[422509142,1779007838000,-500.0,0.00017808,2]
[422509141,1779007838000,-43882.74100711,0.00017636,2]
[422509138,1779007838000,-150.0,0.00016603,2]
[422509140,1779007838000,-171.6,0.0001712,2]
[422509134,1779007838000,-151.0,0.00016207,2]
[422509136,1779007838000,-151.0,0.00016207,2]
[422509137,1779007838000,-151.0,0.00016207,2]
[422509135,1779007838000,-151.0,0.00016207,2]
[422509139,1779007838000,-150.0,0.00016603,2]
[422509144,1779007838000,-500.0,0.00017808,2]
[422509155,1779007838000,-500.0,0.00017808,2]
[422509154,1779007838000,-522.22381969,0.00017808,2]
[422509131,1779007838000,-151.0,0.00016207,2]
[422509111,1779007838000,-300.0,0.00016,2]
[422509095,1779007838000,-500.0,0.00015273,2]
[422509093,1779007838000,-150.0,0.0001511,2]
[422509156,1779007838000,-500.0,0.00017808,2]
[422509052,1779007838000,-500.0,0.00014999,2]
[422509055,1779007838000,-3523.14,0.00014999,2]
[422509053,1779007838000,-500.0,0.00014999,2]
[422509057,1779007838000,-3523.14,0.00014999,2]
[422509059,1779007838000,-3523.14,0.00014999,2]
[422509061,1779007838000,-3523.14,0.00014999,2]
[422509063,1779007838000,-3523.14,0.00014999,2]
[422509065,1779007838000,-3523.14,0.00014999,2]
[422509067,1779007838000,-3523.14,0.00014999,2]
[422509068,1779007838000,-3523.14,0.00014999,2]
[422509070,1779007838000,-3523.14,0.00014999,2]
[422509077,1779007838000,-3523.14,0.00014999,2]
[422509071,1779007838000,-3523.14,0.00014999,2]
[422509073,1779007838000,-3523.14,0.00014999,2]
[422509075,1779007838000,-3523.14,0.00014999,2]
[422509079,1779007838000,-3523.14,0.00014999,2]
[422509081,1779007838000,-3523.14,0.00014999,2]
[422509083,1779007838000,-3523.14,0.00014999,2]
[422509085,1779007838000,-3523.14,0.00014999,2]
[422509099,1779007838000,-7102.21,0.0001531,2]
[422509101,1779007838000,-150.99,0.0001531,2]
[422509103,1779007838000,-299.99,0.0001531,2]
[422509106,1779007838000,-640.17,0.0001531,2]
[422509087,1779007838000,-3523.14,0.00014999,2]
[422509089,1779007838000,-3523.14,0.00014999,2]
[422509091,1779007838000,-3523.23109298,0.00014999,2]
[422509108,1779007838000,-160.37,0.00015762,2]
[422509097,1779007838000,-5304.91,0.0001531,2]
[422509110,1779007838000,-171.6,0.00015908,2]
[422509146,1779007838000,-500.0,0.00017808,2]
[422509069,1779007838000,-3523.14,0.00014999,2]
[422509143,1779007838000,-500.0,0.00017808,2]
[422509183,1779007838000,-500.0,0.00017808,2]
[422509185,1779007838000,-500.0,0.00017808,2]
[422509186,1779007838000,-500.0,0.00017808,2]
[422509184,1779007838000,-500.0,0.00017808,2]
[422509188,1779007838000,-500.0,0.00017808,2]
[422509187,1779007838000,-500.0,0.00017808,2]
[422509194,1779007838000,-10532.99372535,0.00018528,2]
[422509190,1779007838000,-500.0,0.00017808,2]
[422509191,1779007838000,-500.0,0.00017808,2]
[422509193,1779007838000,-2000.0,0.00018105,2]
[422509189,1779007838000,-500.0,0.00017808,2]
[422509192,1779007838000,-350.0,0.00018,2]
[422509196,1779007838000,-200.0,0.00018827,2]
[422509195,1779007838000,-660.94,0.00018772,2]
[422509206,1779007838000,-43882.74100711,0.00020472,2]
[422509197,1779007838000,-172.1,0.00019155,2]
[422509203,1779007838000,-272.0,0.0002,2]
[422509205,1779007838000,-2000.0,0.00020368,2]
[422509211,1779007838000,-272.0,0.00021,2]
[422509204,1779007838000,-153.0,0.0002,2]
[422509199,1779007838000,-400.0,0.0002,2]
[422509198,1779007838000,-356.0,0.0002,2]
[422509201,1779007838000,-598.0,0.0002,2]
[422509207,1779007838000,-184.95027952,0.0002058,2]
[422509200,1779007838000,-282.0,0.0002,2]
[422509212,1779007838000,-153.0,0.00021,2]
[422509208,1779007838000,-356.0,0.00021,2]
[422509210,1779007838000,-178.0,0.00021,2]
[422509209,1779007838000,-282.0,0.00021,2]
[422509179,1779007838000,-500.0,0.00017808,2]
[422509176,1779007838000,-500.0,0.00017808,2]
[422509202,1779007838000,-178.0,0.0002,2]
[422509177,1779007838000,-500.0,0.00017808,2]
[422509170,1779007838000,-500.0,0.00017808,2]
[422509147,1779007838000,-500.0,0.00017808,2]
[422509148,1779007838000,-500.0,0.00017808,2]
[422509149,1779007838000,-500.0,0.00017808,2]
[422509150,1779007838000,-500.0,0.00017808,2]
[422509153,1779007838000,-500.0,0.00017808,2]
[422509152,1779007838000,-500.0,0.00017808,2]
[422509151,1779007838000,-500.0,0.00017808,2]
[422509164,1779007838000,-500.0,0.00017808,2]
[422509159,1779007838000,-500.0,0.00017808,2]
[422509169,1779007838000,-500.0,0.00017808,2]
[422509160,1779007838000,-500.0,0.00017808,2]
[422509163,1779007838000,-500.0,0.00017808,2]
[422509165,1779007838000,-500.0,0.00017808,2]
[422509167,1779007838000,-500.0,0.00017808,2]
[422509145,1779007838000,-500.0,0.00017808,2]
[422509168,1779007838000,-500.0,0.00017808,2]
[422509157,1779007838000,-500.0,0.00017808,2]
[422509173,1779007838000,-500.0,0.00017808,2]
[422509178,1779007838000,-500.0,0.00017808,2]
[422509174,1779007838000,-500.0,0.00017808,2]
[422509175,1779007838000,-500.0,0.00017808,2]
[422509172,1779007838000,-500.0,0.00017808,2]
[422509180,1779007838000,-500.0,0.00017808,2]
[422509182,1779007838000,-500.0,0.00017808,2]
[422509171,1779007838000,-500.0,0.00017808,2]
[422509158,1779007838000,-500.0,0.00017808,2]
[422509166,1779007838000,-500.0,0.00017808,2]
[422509161,1779007838000,-500.0,0.00017808,2]
[422509181,1779007838000,-300.0,0.00017808,2]
[422509162,1779007838000,-500.0,0.00017808,2]
[422509241,1779007839000,-178.0,0.00024,2]
[422509251,1779007839000,-169.13,0.00024658,2]
[422509246,1779007839000,-1000.0,0.00024658,2]
[422509248,1779007839000,-172.38,0.00024658,2]
[422509250,1779007839000,-173.17,0.00024658,2]
[422509244,1779007839000,-1236.21,0.00024174,2]
[422509245,1779007839000,-10981.5814638,0.00024611,2]
[422509243,1779007839000,-153.0,0.00024,2]
[422509242,1779007839000,-272.0,0.00024,2]
[422509249,1779007839000,-170.42,0.00024658,2]
[422509247,1779007839000,-168.82,0.00024658,2]
[422509257,1779007839000,-170.0,0.00025,2]
[422509252,1779007839000,-2000.0,0.00024894,2]
[422509254,1779007839000,-282.19480935,0.00025,2]
[422509255,1779007839000,-188.0,0.00025,2]
[422509256,1779007839000,-276.2,0.00025,2]
[422509239,1779007839000,-500.0,0.00024,2]
[422509264,1779007839000,-437.19,0.00025786,2]
[422509263,1779007839000,-173.17,0.00025753,7]
[422509258,1779007839000,-164.41440023,0.00025015,2]
[422509259,1779007839000,-500.0,0.00025015,2]
[422509260,1779007839000,-2000.0,0.00025016,2]
[422509262,1779007839000,-172.38,0.00025753,7]
[422509253,1779007839000,-367.0,0.00025,2]
[422509240,1779007839000,-282.0,0.00024,2]
[422509232,1779007839000,-1509.13236748,0.00023,30]
[422509236,1779007839000,-43882.74100711,0.00023309,2]
[422509261,1779007839000,-33183.3746,0.00025016,2]
[422509213,1779007839000,-3156.14,0.00021,2]
[422509214,1779007839000,-437.19,0.00021273,2]
[422509216,1779007839000,-172.14,0.000216,2]
[422509215,1779007839000,-169.59,0.00021273,2]
[422509217,1779007839000,-166.66,0.00021686,2]
[422509218,1779007839000,-5000.0,0.00021918,2]
[422509219,1779007839000,-356.0,0.00022,2]
[422509226,1779007839000,-333.21946952,0.00022407,2]
[422509227,1779007839000,-333.21946952,0.00022407,2]
[422509220,1779007839000,-450.0,0.00022,2]
[422509224,1779007839000,-153.0,0.00022,2]
[422509225,1779007839000,-10532.99372535,0.00022256,2]
[422509223,1779007839000,-272.0,0.00022,2]
[422509222,1779007839000,-178.0,0.00022,2]
[422509228,1779007839000,-333.21946952,0.00022407,2]
[422509229,1779007839000,-2000.0,0.00022631,2]
[422509230,1779007839000,-356.0,0.00023,2]
[422509231,1779007839000,-282.0,0.00023,2]
[422509233,1779007839000,-178.0,0.00023,2]
[422509234,1779007839000,-272.0,0.00023,2]
[422509237,1779007839000,-166.66,0.00023969,30]
[422509235,1779007839000,-153.0,0.00023,2]
[422509238,1779007839000,-356.0,0.00024,2]
[422509221,1779007839000,-282.0,0.00022,2]
[422509265,1779007839000,-169.59,0.00025786,2]
[422509276,1779007839000,-165.23316331,0.000271,2]
[422509297,1779007839000,-226.21,0.00028674,7]
[422509294,1779007839000,-218.11,0.00028645,2]
[422509295,1779007839000,-166.94,0.00028645,2]
[422509302,1779007839000,-218.11,0.00028706,30]
[422509303,1779007839000,-166.94,0.00028706,30]
[422509300,1779007839000,-165.4,0.00028677,7]
[422509298,1779007839000,-218.11,0.00028675,7]
[422509304,1779007839000,-165.4,0.00028708,30]
[422509305,1779007839000,-226.21,0.00028736,2]
[422509307,1779007839000,-166.94,0.00028737,2]
[422509306,1779007839000,-218.11,0.00028737,2]
[422509316,1779007839000,-218.11,0.00028799,30]
[422509311,1779007839000,-166.94,0.00028768,7]
[422509308,1779007839000,-165.4,0.00028739,2]
[422509315,1779007839000,-226.21,0.00028798,30]
[422509312,1779007839000,-165.4,0.0002877,7]
[422509314,1779007839000,-159.06,0.00028784,7]
[422509310,1779007839000,-218.11,0.00028768,7]
[422509309,1779007839000,-226.21,0.00028767,7]
[422509317,1779007839000,-166.94,0.00028799,30]
[422509318,1779007839000,-165.4,0.00028801,30]
[422509319,1779007839000,-500.0,0.00028808,10]
[422509274,1779007839000,-165.23316331,0.000268,2]
[422509301,1779007839000,-226.21,0.00028705,30]
[422509299,1779007839000,-166.94,0.00028675,7]
[422509313,1779007839000,-157.86,0.00028783,7]
[422509292,1779007839000,-172.38,0.00028641,2]
[422509275,1779007839000,-214.04877741,0.000268,2]
[422509296,1779007839000,-165.4,0.00028647,2]
[422509266,1779007839000,-1236.21,0.00025786,2]
[422509270,1779007839000,-215.0785988,0.00026582,2]
[422509272,1779007839000,-165.23316331,0.000266,2]
[422509268,1779007839000,-43882.74100711,0.00026146,2]
[422509267,1779007839000,-550.0,0.00026,2]
[422509273,1779007839000,-214.04877741,0.000266,2]
[422509271,1779007839000,-160.0,0.00026582,2]
[422509286,1779007839000,-214.04877741,0.000277,2]
[422509288,1779007839000,-600.0,0.00028,2]
[422509287,1779007839000,-505.0,0.00027976,2]
[422509269,1779007839000,-660.94,0.00026281,2]
[422509283,1779007839000,-214.04877741,0.000274,2]
[422509293,1779007839000,-226.21,0.00028643,2]
[422509277,1779007839000,-214.04877741,0.000271,2]
[422509282,1779007839000,-300.0,0.00027397,2]
[422509281,1779007839000,-1500.0,0.00027397,2]
[422509284,1779007839000,-158.42,0.000274,7]
[422509291,1779007839000,-173.17,0.0002864,2]
[422509280,1779007839000,-2000.0,0.00027157,2]
[422509279,1779007839000,-505.0,0.00027137,2]
[422509290,1779007839000,-159.06,0.00028635,2]
[422509289,1779007839000,-157.86,0.00028634,2]
[422509285,1779007839000,-159.11,0.000274,7]
[422509362,1779007840000,-218.11,0.00029078,30]
[422509361,1779007840000,-165.4,0.00029078,30]
[422509360,1779007840000,-226.21,0.00029077,30]
[422509357,1779007840000,-165.4,0.00029047,7]
[422509363,1779007840000,-166.94,0.00029078,30]
[422509350,1779007840000,-226.21,0.00029015,2]
[422509356,1779007840000,-226.21,0.00029046,7]
[422509355,1779007840000,-173.17,0.00029035,30]
[422509368,1779007840000,-165.4,0.00029109,2]
[422509366,1779007840000,-157.86,0.00029083,2]
[422509352,1779007840000,-166.94,0.00029016,2]
[422509359,1779007840000,-166.94,0.00029047,7]
[422509367,1779007840000,-226.21,0.00029108,2]
[422509358,1779007840000,-218.11,0.00029047,7]
[422509370,1779007840000,-166.94,0.00029109,2]
[422509369,1779007840000,-218.11,0.00029109,2]
[422509374,1779007840000,-218.11,0.0002914,7]
[422509372,1779007840000,-165.4,0.0002914,7]
[422509371,1779007840000,-226.21,0.00029139,7]
[422509375,1779007840000,-166.94,0.0002914,7]
[422509380,1779007840000,-218.11,0.00029201,2]
[422509378,1779007840000,-226.21,0.0002917,30]
[422509377,1779007840000,-166.94,0.0002917,30]
[422509376,1779007840000,-218.11,0.0002917,30]
[422509382,1779007840000,-226.21,0.00029201,2]
[422509381,1779007840000,-166.94,0.00029201,2]
[422509379,1779007840000,-165.4,0.00029171,30]
[422509383,1779007840000,-165.4,0.00029202,2]
[422509351,1779007840000,-218.11,0.00029016,2]
[422509364,1779007840000,-159.06,0.00029083,2]
[422509346,1779007840000,-226.21,0.00028984,30]
[422509325,1779007840000,-173.17,0.00028837,7]
[422509353,1779007840000,-165.4,0.00029017,2]
[422509320,1779007840000,-505.0,0.00028815,3]
[422509328,1779007840000,-218.11,0.00028861,7]
[422509324,1779007840000,-165.4,0.00028832,2]
[422509322,1779007840000,-218.11,0.0002883,2]
[422509323,1779007840000,-166.94,0.0002883,2]
[422509321,1779007840000,-226.21,0.00028829,2]
[422509326,1779007840000,-172.38,0.00028838,7]
[422509327,1779007840000,-226.21,0.0002886,7]
[422509329,1779007840000,-166.94,0.00028861,7]
[422509385,1779007840000,-218.16,0.00029232,7]
[422509340,1779007840000,-157.86,0.00028933,30]
[422509341,1779007840000,-226.21,0.00028953,7]
[422509330,1779007840000,-165.4,0.00028862,7]
[422509331,1779007840000,-226.21,0.00028891,30]
[422509332,1779007840000,-218.11,0.00028892,30]
[422509336,1779007840000,-218.11,0.00028923,2]
[422509333,1779007840000,-166.94,0.00028892,30]
[422509335,1779007840000,-226.21,0.00028922,2]
[422509334,1779007840000,-165.4,0.00028893,30]
[422509338,1779007840000,-165.4,0.00028924,2]
[422509339,1779007840000,-159.06,0.00028933,30]
[422509337,1779007840000,-166.94,0.00028923,2]
[422509342,1779007840000,-218.11,0.00028954,7]
[422509344,1779007840000,-165.4,0.00028955,7]
[422509345,1779007840000,-43882.74100711,0.00028982,2]
[422509348,1779007840000,-166.94,0.00028985,30]
[422509343,1779007840000,-166.94,0.00028954,7]
[422509347,1779007840000,-218.11,0.00028985,30]
[422509354,1779007840000,-172.38,0.00029035,30]
[422509349,1779007840000,-165.4,0.00028986,30]
[422509396,1779007840000,-200.0,0.00030137,2]
[422509448,1779007840000,-811.04259876,0.00032531,2]
[422509388,1779007840000,-167.08,0.00029232,7]
[422509420,1779007840000,-153.0,0.00031248,30]
[422509421,1779007840000,-153.0,0.00031248,30]
[422509416,1779007840000,-272.0,0.00031215,30]
[422509425,1779007840000,-356.0,0.00031249,30]
[422509435,1779007840000,-505.0,0.00032172,7]
[422509424,1779007840000,-153.0,0.00031248,30]
[422509436,1779007840000,-178.0,0.00032215,30]
[422509426,1779007840000,-162.0,0.00031249,30]
[422509427,1779007840000,-152.0,0.00031249,30]
[422509428,1779007840000,-153.0,0.00031249,30]
[422509434,1779007840000,-43882.74100711,0.00031819,2]
[422509429,1779007840000,-282.0,0.00031249,30]
[422509433,1779007840000,-172.02087918,0.00031794,5]
[422509431,1779007840000,-358.58334743,0.00031353,3]
[422509432,1779007840000,-1000.0,0.00031594,6]
[422509430,1779007840000,-505.0,0.00031332,6]
[422509438,1779007840000,-153.0,0.00032215,30]
[422509439,1779007840000,-436.0,0.00032217,5]
[422509440,1779007840000,-346.0,0.00032217,5]
[422509437,1779007840000,-272.0,0.00032215,30]
[422509444,1779007840000,-302.78732028,0.00032279,7]
[422509441,1779007840000,-356.0,0.00032249,30]
[422509442,1779007840000,-282.0,0.00032249,30]
[422509445,1779007840000,-186.76738621,0.00032279,2]
[422509449,1779007840000,-811.04259876,0.00032548,2]
[422509447,1779007840000,-811.04259876,0.00032406,2]
[422509446,1779007840000,-159.11,0.000323,7]
[422509443,1779007840000,-188.05837196,0.00032279,7]
[422509451,1779007840000,-811.04259876,0.00032573,2]
[422509418,1779007840000,-153.0,0.00031248,30]
[422509419,1779007840000,-153.0,0.00031248,30]
[422509450,1779007840000,-150.0,0.00032562,2]
[422509414,1779007840000,-160.0,0.00031215,30]
[422509417,1779007840000,-153.0,0.00031215,30]
[422509384,1779007840000,-165.47,0.00029232,7]
[422509392,1779007840000,-150.0,0.00029534,2]
[422509387,1779007840000,-159.09,0.00029232,7]
[422509386,1779007840000,-172.39,0.00029232,2]
[422509393,1779007840000,-505.0,0.00029654,4]
[422509391,1779007840000,-157.86,0.00029232,7]
[422509389,1779007840000,-226.38,0.00029232,7]
[422509390,1779007840000,-173.17,0.00029232,2]
[422509394,1779007840000,-159.11,0.000297,7]
[422509405,1779007840000,-153.0,0.00030215,30]
[422509404,1779007840000,-156.0,0.00030215,30]
[422509403,1779007840000,-272.0,0.00030215,30]
[422509400,1779007840000,-2332.53628664,0.000302,2]
[422509406,1779007840000,-356.0,0.00030249,30]
[422509395,1779007840000,-10276.8416,0.00029905,2]
[422509397,1779007840000,-166.57,0.00030138,2]
[422509409,1779007840000,-151.0,0.00030249,30]
[422509415,1779007840000,-178.0,0.00031215,30]
[422509411,1779007840000,-505.0,0.00030493,5]
[422509413,1779007840000,-194.04175838,0.00031171,5]
[422509422,1779007840000,-153.0,0.00031248,30]
[422509412,1779007840000,-150.0,0.00031011,2]
[422509423,1779007840000,-153.0,0.00031248,30]
[422509410,1779007840000,-282.0,0.00030249,30]
[422509401,1779007840000,-153.0,0.00030215,30]
[422509402,1779007840000,-178.0,0.00030215,30]
[422509408,1779007840000,-152.0,0.00030249,30]
[422509398,1779007840000,-2332.53628666,0.000302,2]
[422509399,1779007840000,-2332.53628664,0.000302,2]
[422509407,1779007840000,-159.0,0.00030249,30]
[422509495,1779007841000,-272.0,0.00035215,30]
[422509497,1779007841000,-356.0,0.00035249,30]
[422509493,1779007841000,-163.92,0.000352,120]
[422509491,1779007841000,-1500.0,0.00034795,2]
[422509492,1779007841000,-1000.0,0.00035199,26]
[422509486,1779007841000,-930.0,0.00034409,2]
[422509490,1779007841000,-505.0,0.00034689,10]
[422509500,1779007841000,-505.0,0.00035528,11]
[422509488,1779007841000,-152.0,0.00034462,3]
[422509484,1779007841000,-275.0,0.00034409,2]
[422509494,1779007841000,-178.0,0.00035215,30]
[422509489,1779007841000,-43882.74100711,0.00034656,2]
[422509496,1779007841000,-153.0,0.00035215,30]
[422509513,1779007841000,-358.04676529,0.00036377,2]
[422509499,1779007841000,-500.0,0.00035452,120]
[422509501,1779007841000,-150.0,0.00035899,2]
[422509502,1779007841000,-183.5467066,0.00036137,2]
[422509512,1779007841000,-300.0,0.00036377,2]
[422509487,1779007841000,-418.405,0.00034409,2]
[422509510,1779007841000,-5000.0,0.00036277,2]
[422509511,1779007841000,-505.0,0.00036367,12]
[422509503,1779007841000,-734.18682642,0.00036137,2]
[422509505,1779007841000,-178.0,0.00036215,30]
[422509504,1779007841000,-151.0,0.00036153,30]
[422509509,1779007841000,-282.0,0.00036249,30]
[422509508,1779007841000,-356.0,0.00036249,30]
[422509506,1779007841000,-272.0,0.00036215,30]
[422509507,1779007841000,-153.0,0.00036215,30]
[422509498,1779007841000,-282.0,0.00035249,30]
[422509483,1779007841000,-1376.0,0.00034409,2]
[422509476,1779007841000,-153.0,0.00034215,30]
[422509477,1779007841000,-356.0,0.00034249,30]
[422509525,1779007841000,-300.0,0.00036377,2]
[422509461,1779007841000,-178.0,0.00033215,30]
[422509462,1779007841000,-272.0,0.00033215,30]
[422509457,1779007841000,-811.04259876,0.00033134,2]
[422509455,1779007841000,-505.0,0.00033011,8]
[422509452,1779007841000,-811.04259876,0.00032578,2]
[422509453,1779007841000,-811.04259876,0.0003289,2]
[422509456,1779007841000,-811.04259876,0.00033061,2]
[422509454,1779007841000,-811.04259876,0.00032924,2]
[422509458,1779007841000,-2346.655,0.00033152,34]
[422509459,1779007841000,-167.088,0.00033152,34]
[422509460,1779007841000,-1000.0,0.00033206,35]
[422509464,1779007841000,-356.0,0.00033249,30]
[422509474,1779007841000,-178.0,0.00034215,30]
[422509471,1779007841000,-151.0,0.00034182,7]
[422509463,1779007841000,-153.0,0.00033215,30]
[422509467,1779007841000,-1000.0,0.00033505,8]
[422509465,1779007841000,-282.0,0.00033249,30]
[422509466,1779007841000,-811.04259876,0.00033335,2]
[422509469,1779007841000,-505.0,0.0003385,9]
[422509472,1779007841000,-150.0,0.0003419,2]
[422509470,1779007841000,-26797.0,0.00034144,2]
[422509468,1779007841000,-811.04259876,0.00033535,2]
[422509473,1779007841000,-1000.0,0.00034199,21]
[422509478,1779007841000,-282.0,0.00034249,30]
[422509479,1779007841000,-927.0,0.00034409,2]
[422509480,1779007841000,-1354.0,0.00034409,2]
[422509481,1779007841000,-3558.235,0.00034409,2]
[422509485,1779007841000,-219.0,0.00034409,2]
[422509482,1779007841000,-150.0,0.00034409,2]
[422509475,1779007841000,-272.0,0.00034215,30]
[422509526,1779007841000,-604.73492277,0.00036377,2]
[422509514,1779007841000,-1095.24427681,0.00036377,2]
[422509543,1779007841000,-344.12979214,0.00036377,2]
[422509550,1779007841000,-332.48367818,0.00036377,2]
[422509554,1779007841000,-300.0,0.00036377,2]
[422509561,1779007841000,-463.19898361,0.00036377,2]
[422509556,1779007841000,-376.61945263,0.00036377,2]
[422509564,1779007841000,-309.96996065,0.00036377,2]
[422509563,1779007841000,-484.30212364,0.00036377,2]
[422509560,1779007841000,-300.0,0.00036377,2]
[422509562,1779007841000,-300.0,0.00036377,2]
[422509565,1779007841000,-300.0,0.00036377,2]
[422509558,1779007841000,-300.0,0.00036377,2]
[422509553,1779007841000,-464.05309097,0.00036377,2]
[422509557,1779007841000,-452.10208933,0.00036377,2]
[422509549,1779007841000,-1791.55036629,0.00036377,2]
[422509559,1779007841000,-300.0,0.00036377,2]
[422509577,1779007841000,-492.91797782,0.00036377,2]
[422509578,1779007841000,-300.0,0.00036377,2]
[422509568,1779007841000,-1095.24427681,0.00036377,2]
[422509569,1779007841000,-353.59451446,0.00036377,2]
[422509566,1779007841000,-300.0,0.00036377,2]
[422509572,1779007841000,-300.0,0.00036377,2]
[422509571,1779007841000,-300.0,0.00036377,2]
[422509573,1779007841000,-300.0,0.00036377,2]
[422509574,1779007841000,-300.0,0.00036377,2]
[422509575,1779007841000,-300.0,0.00036377,2]
[422509570,1779007841000,-300.0,0.00036377,2]
[422509576,1779007841000,-468.84259228,0.00036377,2]
[422509519,1779007841000,-498.47415717,0.00036377,2]
[422509567,1779007841000,-300.0,0.00036377,2]
[422509548,1779007841000,-864.84573435,0.00036377,2]
[422509555,1779007841000,-577.47815809,0.00036377,2]
[422509547,1779007841000,-309.72976467,0.00036377,2]
[422509515,1779007841000,-497.08449337,0.00036377,2]
[422509544,1779007841000,-527.12281632,0.00036377,2]
[422509517,1779007841000,-300.0,0.00036377,2]
[422509516,1779007841000,-300.0,0.00036377,2]
[422509520,1779007841000,-300.0,0.00036377,2]
[422509518,1779007841000,-496.12427771,0.00036377,2]
[422509521,1779007841000,-300.0,0.00036377,2]
[422509522,1779007841000,-300.0,0.00036377,2]
[422509524,1779007841000,-334.51679478,0.00036377,2]
[422509528,1779007841000,-300.0,0.00036377,2]
[422509538,1779007841000,-300.0,0.00036377,2]
[422509537,1779007841000,-300.0,0.00036377,2]
[422509539,1779007841000,-300.0,0.00036377,2]
[422509527,1779007841000,-300.0,0.00036377,2]
[422509536,1779007841000,-300.70672347,0.00036377,2]
[422509523,1779007841000,-492.91797782,0.00036377,2]
[422509542,1779007841000,-1913.25849317,0.00036377,2]
[422509546,1779007841000,-1147.71030809,0.00036377,2]
[422509535,1779007841000,-300.0,0.00036377,2]
[422509540,1779007841000,-949.41386656,0.00036377,2]
[422509545,1779007841000,-460.44893399,0.00036377,2]
[422509552,1779007841000,-300.0,0.00036377,2]
[422509541,1779007841000,-300.0,0.00036377,2]
[422509551,1779007841000,-311.04198967,0.00036377,2]
[422509530,1779007841000,-1067.39759447,0.00036377,2]
[422509534,1779007841000,-301.92446648,0.00036377,2]
[422509531,1779007841000,-893.8052833,0.00036377,2]
[422509532,1779007841000,-726.3731759,0.00036377,2]
[422509529,1779007841000,-527.9795525,0.00036377,2]
[422509533,1779007841000,-300.0,0.00036377,2]
[422509618,1779007842000,-309.96996065,0.00036377,2]
[422509621,1779007842000,-300.0,0.00036377,2]
[422509620,1779007842000,-300.0,0.00036377,2]
[422509632,1779007842000,-1012.73496104,0.000371,2]
[422509630,1779007842000,-1350.3132814,0.000371,2]
[422509629,1779007842000,-154.5563325,0.000371,7]
[422509616,1779007842000,-300.0,0.00036377,2]
[422509612,1779007842000,-452.10208933,0.00036377,2]
[422509613,1779007842000,-300.0,0.00036377,2]
[422509615,1779007842000,-300.0,0.00036377,2]
[422509614,1779007842000,-300.0,0.00036377,2]
[422509624,1779007842000,-1095.24427681,0.00036377,2]
[422509619,1779007842000,-301.50203451,0.00036377,2]
[422509622,1779007842000,-300.0,0.00036377,2]
[422509642,1779007842000,-500.0,0.00037185,10]
[422509625,1779007842000,-657.0,0.000364,30]
[422509628,1779007842000,-5555.9823582,0.000371,2]
[422509626,1779007842000,-158.40983434,0.00036996,2]
[422509627,1779007842000,-234.61941104,0.000371,2]
[422509634,1779007842000,-151.0,0.00037183,14]
[422509635,1779007842000,-151.0,0.00037183,14]
[422509633,1779007842000,-151.0,0.00037183,14]
[422509636,1779007842000,-151.0,0.00037183,14]
[422509641,1779007842000,-500.0,0.00037185,10]